bitfinex-derivatives/quotes_ETHF0:USTF0_20220106
["timestamp","ask_amount","ask_price","bid_price","bid_amount"]
[1641506236926,1.85613721,3426.8,3426.1,2.00479]
[1641506237325,1.45920217,3426.2,3426.1,2.00479]
[1641506237527,1.85613721,3426.8,3426.1,2.00479]
[1641506237727,1.85613721,3426.8,3426.1,3.58480892]
[1641506238129,1.85613721,3426.8,3426.1,2.00479]
[1641506239028,1.85613721,3426.8,3426.1,2.84239]
[1641506239827,1.85613721,3426.8,3426.2,1.5798256]
[1641506240029,1.85613721,3426.8,3426.2,2.04309216]
[1641506240733,1.85613721,3426.8,3426.2,0.46326656]
[1641506241531,1.85613721,3426.8,3426.3,0.46326656]
[1641506242637,1.85613721,3426.8,3426.2,0.46326656]
[1641506243334,3.31508377,3426.8,3426.2,0.46326656]
[1641506243933,2.00479,3426.7,3426.2,0.46326656]
[1641506244134,0.397182,3426.6,3426.2,0.46326656]
[1641506244934,0.397182,3426.6,3426.3,0.13140628]
[1641506245136,0.459982,3426.5,3426.3,0.13140628]
[1641506245436,0.397182,3426.6,3426.3,0.13140628]
[1641506246134,0.397182,3426.6,3426.4,0.46326656]
[1641506246335,0.459982,3426.5,3426.4,0.46326656]
[1641506246535,2.00479,3426.7,3426.4,0.59467284]
[1641506246937,2.00479,3426.7,3426.5,0.13140628]
[1641506247337,0.459982,3426.6,3426.5,0.13140628]
[1641506248737,0.459982,3426.6,3426.1,0.13140628]
[1641506249036,2.00479,3426.7,3426.5,0.13140628]
[1641506249235,0.459982,3426.6,3426.5,0.13140628]
[1641506249436,0.459982,3426.6,3426.1,0.13140628]
[1641506249636,0.459982,3426.6,3426.5,0.13140628]
[1641506250037,0.459982,3426.6,3426.2,0.13140628]
[1641506250236,2.401972,3426.7,3426.5,0.13140628]
[1641506250437,2.00479,3426.7,3426.5,0.13140628]
[1641506250638,2.00479,3426.7,3426.3,0.13140628]
[1641506250839,2.00479,3426.7,3426.6,0.13140628]
[1641506251042,2.464772,3426.7,3426.4,0.13140628]
[1641506251440,2.464772,3426.7,3426.6,0.13140628]
[1641506251639,2.464772,3426.7,3426.5,0.13140628]
[1641506252039,2.464772,3426.7,3426.6,0.13140628]
[1641506252440,2.464772,3426.7,3426.1,0.13140628]
[1641506252842,2.464772,3426.7,3426.6,0.13140628]
[1641506253044,2.464772,3426.7,3426.2,0.13140628]
[1641506253244,2.464772,3426.7,3426.6,0.13140628]
[1641506253648,2.861954,3426.7,3426.3,0.13140628]
[1641506253848,2.861954,3426.7,3426.6,0.13140628]
[1641506254148,2.861954,3426.7,3426.4,0.13140628]
[1641506254346,2.861954,3426.7,3426.6,0.13140628]
[1641506254547,2.861954,3426.7,3426.5,0.13140628]
[1641506254947,2.861954,3426.7,3426.6,0.13140628]
[1641506255553,2.861954,3426.7,3426.1,0.13140628]
[1641506255754,2.861954,3426.7,3426.6,0.13140628]
[1641506255955,2.861954,3426.7,3426.2,0.13140628]
[1641506256258,2.861954,3426.7,3426.6,0.13140628]
[1641506256657,2.861954,3426.7,3426.1,0.13140628]
[1641506256857,2.401972,3426.7,3426.1,0.13140628]
[1641506257059,2.401972,3426.7,3426.6,0.13140628]
[1641506257258,2.401972,3426.7,3426.2,0.13140628]
[1641506257558,2.401972,3426.7,3426.6,0.13140628]
[1641506257758,2.861954,3426.7,3426.3,0.13140628]
[1641506257958,2.861954,3426.7,3426.6,0.13140628]
[1641506258158,2.401972,3426.7,3426.6,0.13140628]
[1641506258359,2.401972,3426.7,3426.4,0.13140628]
[1641506258557,2.00479,3426.7,3426.6,0.13140628]
[1641506259158,2.00479,3426.7,3426.5,0.13140628]
[1641506259560,2.00479,3426.7,3426.3,0.13140628]
[1641506259861,2.00479,3426.7,3426.6,0.13140628]
[1641506260263,2.00479,3426.7,3426.3,0.13140628]
[1641506260462,2.00479,3426.7,3426.6,0.13140628]
[1641506260762,2.00479,3426.7,3426.4,0.13140628]
[1641506261062,2.00479,3426.7,3426.6,0.13140628]
[1641506261463,2.00479,3426.7,3426.2,0.7702]
[1641506261464,2.00479,3426.7,3426.5,0.13140628]
[1641506261662,2.00479,3426.7,3426.6,0.13140628]
[1641506261863,2.464772,3426.7,3426.6,0.13140628]
[1641506262263,2.464772,3426.7,3426.2,0.13140628]
[1641506262464,2.00479,3426.7,3426.6,0.13140628]
[1641506262866,0.384472,3426.8,3426.3,0.13140628]
[1641506263064,0.384472,3426.8,3426.6,0.13140628]
[1641506263464,0.384472,3426.8,3426.5,0.73019153]
[1641506263866,0.384472,3426.8,3426.6,0.13140628]
[1641506264066,0.459982,3426.7,3426.6,0.13140628]
[1641506264267,1.061082,3426.7,3426.6,0.13140628]
[1641506264467,1.061082,3426.7,3426.5,0.73019153]
[1641506264668,1.061082,3426.7,3426.6,0.73019153]
[1641506264868,1.458264,3426.7,3426.6,0.73019153]
[1641506265669,0.72883606,3426.6,3426.5,0.46324006]
[1641506265870,1.18881806,3426.6,3426.5,0.46324006]
[1641506266070,2.64784565,3426.6,3426.4,1.19419047]
[1641506266270,2.18786365,3426.6,3426.4,1.19419047]
[1641506266971,2.18786365,3426.6,3426.4,0.46324006]
[1641506267172,0.857164,3426.5,3426.4,0.46324006]
[1641506267373,0.397182,3426.5,3426.4,0.46324006]
[1641506267976,1.897182,3426.5,3425.4,1.83676138]
[1641506268176,1.5,3426.2,3425.4,1.83676138]
[1641506268376,1.5,3426.0,3425.5,2.00479]
[1641506268576,0.459982,3425.9,3425.5,2.00479]
[1641506268777,1.85610529,3425.8,3425.5,2.00479]
[1641506268978,1.85610529,3425.8,3425.4,1.83676138]
[1641506269676,1.85610529,3425.8,3425.1,2.88951518]
[1641506269877,1.5,3425.7,3425.1,0.4405]
[1641506270077,1.897182,3425.6,3425.1,0.4405]
[1641506270280,2.00479,3425.2,3425.1,0.4405]
[1641506270480,3.074672,3425.2,3425.1,0.4405]
[1641506270678,3.471854,3425.2,3425.1,0.4405]
[1641506273781,1.01920485,3425.1,3424.6,0.61785507]
[1641506273982,0.397182,3425.0,3424.6,0.61785507]
[1641506274585,0.397182,3425.0,3424.6,1.05605507]
[1641506274784,0.397182,3425.0,3424.6,0.61785507]
[1641506275386,1.142482,3425.0,3424.6,0.61785507]
[1641506276487,1.142482,3425.0,3424.0,2.90200356]
[1641506276488,2.00479,3424.7,3424.0,2.90200356]
[1641506276688,0.384472,3424.6,3424.0,2.90200356]
[1641506276887,0.384472,3424.6,3424.1,1.57786592]
[1641506277289,1.84436011,3424.6,3424.1,1.57786592]
[1641506277488,1.84436011,3424.6,3424.1,3.4146273]
[1641506277687,2.401972,3424.7,3424.1,3.4146273]
[1641506277886,2.26899487,3424.7,3424.1,1.83676138]
[1641506278487,2.00479,3424.3,3424.1,1.83676138]
[1641506278989,2.77999,3424.3,3424.2,1.83676138]
[1641506279988,0.55003077,3424.3,3424.2,1.83676138]
[1641506280889,0.55003077,3424.3,3424.0,2.90200356]
[1641506281892,0.55003077,3424.3,3424.0,4.12651115]
[1641506282090,0.55003077,3424.3,3424.2,2.44901518]
[1641506282492,0.55003077,3424.3,3424.2,2.58016673]
[1641506283592,0.55003077,3424.3,3424.2,3.50587665]
[1641506284395,0.384472,3424.5,3424.2,3.50587665]
[1641506284796,0.384472,3424.5,3424.3,0.13115155]
[1641506285196,2.00479,3425.0,3424.3,0.13115155]
[1641506285398,0.384472,3424.9,3424.3,0.13115155]
[1641506286196,2.00479,3425.0,3424.3,0.13115155]
[1641506286397,2.00479,3425.0,3424.4,1.83876496]
[1641506286696,2.00479,3425.0,3424.5,8.0]
[1641506286899,2.00479,3425.0,3424.6,0.87599104]
[1641506287097,2.00479,3425.0,3424.6,1.00714259]
[1641506287596,2.00479,3425.0,3424.7,0.13115155]
[1641506287797,0.384472,3424.9,3424.7,0.13115155]
[1641506288697,0.384472,3424.9,3424.7,0.59460948]
[1641506289297,0.384472,3424.9,3424.8,0.13115155]
[1641506289599,0.844454,3424.9,3424.8,0.59460948]
[1641506289999,0.384472,3424.9,3424.8,0.59460948]
[1641506290498,0.844454,3424.9,3424.8,0.59460948]
[1641506290898,0.844454,3424.9,3424.8,0.46345793]
[1641506292300,2.30421851,3424.9,3424.8,0.46345793]
[1641506292499,2.30421851,3424.9,3424.1,2.00479]
[1641506292500,2.30421851,3424.9,3424.3,0.46345793]
[1641506292900,0.397182,3424.8,3424.4,0.13113958]
[1641506294000,0.397182,3424.8,3424.3,0.13113958]
[1641506294604,0.397182,3424.8,3424.5,0.46345793]
[1641506295403,1.45976451,3424.9,3424.6,1.34523157]
[1641506295601,0.98785239,3425.3,3424.6,1.34523157]
[1641506295802,0.98785239,3425.3,3424.7,0.13111029]
[1641506296201,0.98785239,3425.3,3425.0,30.8029433]
[1641506296813,2.00479,3425.5,3425.0,30.8029433]
[1641506297112,2.00479,3425.5,3425.1,0.13108339]
[1641506297409,2.00479,3425.5,3425.2,0.90020034]
[1641506297608,2.00479,3425.5,3425.2,1.58070034]
[1641506297811,2.00479,3425.5,3425.3,0.13108339]
[1641506299713,2.00479,3425.5,3425.4,0.46345793]
[1641506300809,2.00479,3425.5,3425.3,0.46345793]
[1641506301911,0.459982,3425.4,3425.3,0.46345793]
[1641506303714,2.00479,3425.5,3425.3,0.46345793]
[1641506304212,0.38601755,3425.4,3425.3,0.46345793]
[1641506305415,2.00479,3425.5,3425.3,0.46345793]
[1641506305614,0.459982,3425.4,3425.3,0.46345793]
[1641506306215,2.401972,3425.5,3425.3,0.46345793]
[1641506306915,2.861954,3425.5,3425.3,0.46345793]
[1641506307517,0.38600531,3425.4,3424.9,0.46345793]
[1641506307918,0.38600531,3425.4,3425.0,0.13118471]
[1641506309217,2.401972,3425.5,3425.0,0.13118471]
[1641506309418,2.401972,3425.5,3425.1,0.46345793]
[1641506310417,0.38601188,3425.4,3425.1,0.46345793]
[1641506310617,0.459982,3425.3,3425.1,0.46345793]
[1641506311318,0.459982,3425.3,3424.9,1.83876496]
[1641506311518,2.401972,3425.5,3424.9,1.83876496]
[1641506311718,2.401972,3425.5,3425.0,0.13123534]
[1641506312218,0.38601345,3425.4,3425.0,0.13123534]
[1641506312622,0.397182,3425.3,3424.8,0.13123534]
[1641506312819,0.397182,3425.3,3425.1,0.13123534]
[1641506313020,0.459982,3425.2,3424.9,0.13123534]
[1641506313320,0.397182,3425.3,3425.1,0.46345793]
[1641506314120,0.397182,3425.3,3425.2,0.13125829]
[1641506315223,0.397182,3425.3,3424.9,0.13125829]
[1641506315521,1.45955145,3425.4,3425.2,0.13125829]
[1641506315721,0.459982,3425.3,3425.2,0.13125829]
[1641506315921,0.459982,3425.3,3424.9,0.13125829]
[1641506316321,0.459982,3425.3,3425.2,0.13125829]
[1641506316522,1.45955145,3425.4,3425.0,0.13125829]
[1641506316722,1.45955145,3425.4,3425.2,0.59471622]
[1641506316924,0.459982,3425.3,3425.2,0.46345793]
[1641506317223,0.459982,3425.3,3425.2,0.59471622]
[1641506317423,0.459982,3425.3,3425.2,0.13125829]
[1641506317925,0.459982,3425.3,3424.9,0.13125829]
[1641506318124,1.45955145,3425.4,3425.2,0.13125829]
[1641506318323,0.459982,3425.3,3425.2,0.13125829]
[1641506318523,0.459982,3425.3,3425.0,0.384472]
[1641506318723,0.459982,3425.3,3425.2,0.13125829]
[1641506319125,0.459982,3425.3,3425.1,0.13125829]
[1641506319525,0.459982,3425.3,3424.9,0.13125829]
[1641506319726,0.459982,3425.3,3425.2,0.13125829]
[1641506319926,1.45955145,3425.4,3425.0,0.13125829]
[1641506320326,1.45955145,3425.4,3425.2,0.13125829]
[1641506320631,1.45955145,3425.4,3424.8,1.60726542]
[1641506320632,0.459982,3425.3,3425.1,0.13125829]
[1641506320829,0.459982,3425.3,3424.9,0.384472]
[1641506321029,0.857164,3425.3,3424.9,0.384472]
[1641506321530,2.00479,3425.1,3424.9,0.384472]
[1641506322931,2.464772,3425.1,3424.8,1.60726542]
[1641506323132,0.397182,3425.0,3424.8,1.60726542]
[1641506323530,0.384472,3424.9,3424.8,1.60726542]
[1641506324230,0.384472,3424.9,3424.8,0.87595254]
[1641506324430,0.384472,3424.9,3424.8,1.33942878]
[1641506325032,0.397182,3425.0,3424.8,1.33942878]
[1641506325534,1.241636,3425.0,3424.8,1.33942878]
[1641506326133,0.781654,3425.0,3424.8,1.33942878]
[1641506326535,0.781654,3425.0,3424.9,0.46347624]
[1641506327737,1.241636,3425.0,3424.9,0.46347624]
[1641506328837,0.781654,3425.0,3424.9,0.46347624]
[1641506329338,1.241636,3425.0,3424.9,0.46347624]
[1641506333145,0.781654,3425.0,3424.9,0.46347624]
[1641506333745,1.241636,3425.0,3424.9,0.46347624]
[1641506335749,1.241636,3425.0,3424.9,0.59515689]
[1641506335950,0.781654,3425.0,3424.9,0.59515689]
[1641506336146,1.241636,3425.0,3424.9,0.59515689]
[1641506336649,0.781654,3425.0,3424.9,0.59515689]
[1641506337048,1.241636,3425.0,3424.9,0.59515689]
[1641506340054,0.781654,3425.0,3424.9,0.59515689]
[1641506341257,1.241636,3425.0,3424.9,0.59515689]
[1641506342053,0.781654,3425.0,3424.9,0.59515689]
[1641506342254,1.241636,3425.0,3424.9,0.59515689]
[1641506342857,1.241636,3425.0,3424.9,0.13168065]
[1641506343455,1.241636,3425.0,3424.7,1.71540591]
[1641506343656,0.781654,3425.0,3424.7,1.71540591]
[1641506343955,0.781654,3425.0,3424.9,0.59516681]
[1641506344155,1.241636,3425.0,3424.9,0.59516681]
[1641506344354,1.241636,3425.0,3424.9,0.46348616]
[1641506344554,0.781654,3425.0,3424.9,0.59516681]
[1641506344955,1.45967502,3425.1,3424.9,0.59516681]
[1641506345355,1.45967502,3425.1,3424.9,2.17879706]
[1641506345554,1.45967502,3425.1,3424.9,12.48513834]
[1641506345853,2.00479,3425.3,3424.9,12.48513834]
[1641506345854,2.00479,3425.3,3425.0,1.7153109]
[1641506346357,2.00479,3425.3,3425.0,2.17879706]
[1641506346858,2.00479,3425.3,3425.1,1.7153109]
[1641506347055,2.00479,3425.3,3425.1,0.13168065]
[1641506347459,2.00479,3425.3,3425.2,0.13168065]
[1641506347656,2.464772,3425.3,3425.2,0.13168065]
[1641506348056,2.00479,3425.3,3425.1,0.46348616]
[1641506348257,2.00479,3425.3,3425.2,0.13168065]
[1641506348658,2.00479,3425.3,3425.2,0.59516681]
[1641506349057,2.00479,3425.3,3425.2,2.1785137]
[1641506349560,2.00479,3425.3,3425.2,0.46348616]
[1641506349761,2.00479,3425.3,3425.2,2.1785137]
[1641506350962,2.00479,3425.3,3425.2,0.59516681]
[1641506351764,2.00479,3425.3,3425.2,2.17863225]
[1641506351962,2.00479,3425.3,3425.2,0.46348616]
[1641506352563,2.00479,3425.3,3425.2,0.59516681]
[1641506352966,2.00479,3425.3,3425.2,2.17886394]
[1641506353164,2.00479,3425.3,3425.2,1.71537778]
[1641506353364,2.00479,3425.3,3425.1,0.46348616]
[1641506353564,2.00479,3425.3,3425.2,1.71537778]
[1641506354366,2.00479,3425.3,3425.2,2.17886394]
[1641506355468,2.00479,3425.7,3425.3,0.89105838]
[1641506355868,2.00479,3425.7,3425.2,2.17886394]
[1641506356068,2.00479,3425.7,3425.4,0.13168065]
[1641506356268,0.459982,3425.6,3425.4,0.13168065]
[1641506356470,0.459982,3425.6,3425.3,1.71551715]
[1641506356672,0.459982,3425.6,3425.5,0.13168065]
[1641506356870,0.459982,3425.6,3425.4,0.13168065]
[1641506357069,0.459982,3425.6,3425.5,0.13168065]
[1641506357670,0.459982,3425.6,3425.4,0.46348616]
[1641506357869,0.459982,3425.6,3425.5,0.13168065]
[1641506358471,0.459982,3425.6,3425.5,0.97963881]
[1641506359873,0.844454,3425.6,3425.5,0.59516681]
[1641506360277,0.98877047,3426.0,3425.5,2.09516681]
[1641506360477,1.23596309,3426.2,3425.9,1.5]
[1641506360677,1.85394464,3426.7,3426.1,9.5]
[1641506360878,1.85394464,3426.7,3426.4,1.5]
[1641506361078,1.85394464,3426.7,3426.4,0.7666]
[1641506361779,1.85394464,3426.7,3426.4,1.91740215]
[1641506361977,1.48315571,3426.6,3426.4,1.91740215]
[1641506362177,1.48315571,3426.6,3426.4,0.89827411]
[1641506362377,1.48315571,3426.6,3426.5,2.389262]
[1641506363378,1.48315571,3426.6,3426.5,2.52082277]
[1641506363578,1.48315571,3426.6,3426.5,2.98430893]
[1641506363779,3.46355057,3427.3,3426.5,2.98430893]
[1641506364179,3.46355057,3427.3,3426.6,0.13156077]
[1641506364680,3.46355057,3427.3,3426.5,2.85274816]
[1641506365180,3.46355057,3427.3,3426.8,0.73601355]
[1641506365380,3.86073257,3427.3,3426.8,0.73601355]
[1641506365780,5.31897932,3427.3,3426.8,0.73601355]
[1641506366481,7.32376932,3427.3,3426.8,0.73601355]
[1641506366780,5.86500875,3427.3,3426.8,0.73601355]
[1641506367281,5.86500875,3427.3,3426.6,1.19949971]
[1641506367482,8.13016446,3427.3,3426.6,1.19949971]
[1641506368386,1.45886582,3427.0,3426.6,1.19949971]
[1641506368588,1.85610316,3426.9,3426.6,1.19949971]
[1641506368790,0.459982,3426.8,3426.6,1.19949971]
[1641506369188,0.397182,3426.7,3426.6,1.19949971]
[1641506369389,0.397182,3426.7,3426.5,2.74080355]
[1641506369592,0.781654,3426.7,3426.5,2.74080355]
[1641506369791,0.397182,3426.7,3426.5,2.74080355]
[1641506370490,0.397182,3426.7,3426.5,2.00479]
[1641506371492,0.459982,3426.6,3426.5,2.00479]
[1641506371689,1.032482,3426.6,3426.5,2.00479]
[1641506372092,2.49154791,3426.6,3426.5,2.00479]
[1641506372291,3.47885333,3426.6,3426.5,2.00479]
[1641506372892,2.03156591,3426.6,3426.5,2.00479]
[1641506373492,2.49154791,3426.6,3426.5,2.00479]
[1641506373693,2.03156591,3426.6,3426.5,2.00479]
[1641506373894,3.01884929,3426.6,3426.5,2.00479]
[1641506374296,3.47883129,3426.6,3426.5,2.00479]
[1641506374697,3.01884929,3426.6,3426.5,2.00479]
[1641506374996,3.01884929,3426.6,3426.5,3.20417708]
[1641506376398,2.03156591,3426.6,3426.5,3.20417708]
[1641506376999,2.49154791,3426.6,3426.5,3.20417708]
[1641506377201,2.49154791,3426.6,3426.5,0.73601355]
[1641506377600,3.82147814,3426.6,3426.4,0.73601355]
[1641506378401,0.459982,3426.5,3426.4,0.73601355]
[1641506378901,0.80262885,3426.5,3426.4,1.19938647]
[1641506379400,0.34264685,3426.5,3426.4,1.19938647]
[1641506379601,0.80262885,3426.5,3426.4,1.33466793]
[1641506379804,0.80262885,3426.5,3426.3,1.12048555]
[1641506380702,0.459982,3426.5,3426.3,1.12048555]
[1641506380901,3.01884929,3426.6,3426.4,1.19938647]
[1641506380902,1.45906591,3426.6,3426.4,1.19938647]
[1641506382305,0.459982,3426.5,3426.4,1.19938647]
[1641506383004,1.217382,3426.5,3426.4,0.73601355]
[1641506383203,1.217382,3426.5,3426.4,0.87128065]
[1641506384005,1.56522465,3426.5,3426.4,0.87128065]
[1641506384606,1.56522465,3426.5,3426.4,0.73601355]
[1641506385009,1.56522465,3426.5,3426.4,1.19938647]
[1641506385407,1.10524265,3426.5,3426.4,1.19938647]
[1641506385707,1.10524265,3426.5,3426.4,1.33467476]
[1641506385907,1.10524265,3426.5,3426.4,0.13528829]
[1641506386307,1.50242465,3426.5,3426.4,0.13528829]
[1641506386509,1.50242465,3426.5,3426.3,1.19938647]
[1641506386808,1.50242465,3426.5,3426.3,0.73601355]
[1641506387011,1.96240665,3426.5,3426.3,0.73601355]
[1641506387511,1.96240665,3426.5,3426.4,0.13529219]
[1641506387710,3.114564,3426.5,3425.0,1.50056511]
[1641506387911,12.56,3426.4,3425.3,7.30519109]
[1641506388110,1.5,3426.0,3425.3,1.84319109]
[1641506388310,0.781654,3425.9,3425.3,1.84319109]
[1641506389312,1.45940661,3425.8,3425.2,2.00479]
[1641506389514,0.397182,3425.7,3425.2,2.00479]
[1641506393117,0.397182,3425.7,3425.3,0.384472]
[1641506393319,1.45940661,3425.8,3425.4,1.7938115]
[1641506393516,1.45940661,3425.8,3425.7,2.00479]
[1641506394319,0.384472,3426.1,3425.7,2.00479]
[1641506395321,1.45913403,3426.4,3425.7,2.00479]
[1641506395519,1.45913403,3426.4,3426.1,2.00479]
[1641506396722,0.459982,3426.3,3426.1,2.00479]
[1641506397020,1.84360603,3426.4,3426.1,2.00479]
[1641506397924,2.24078803,3426.4,3426.1,2.00479]
[1641506399425,0.459982,3426.3,3426.1,2.00479]
[1641506400025,0.397182,3426.2,3426.1,2.00479]
[1641506400627,2.767482,3426.2,3426.1,2.00479]
[1641506401730,1.267482,3426.2,3426.1,2.00479]
[1641506401929,2.767482,3426.2,3426.1,2.00479]
[1641506402530,3.227464,3426.2,3426.1,2.00479]
[1641506403331,2.767482,3426.2,3426.1,2.00479]
[1641506403729,0.8703,3426.2,3426.1,2.00479]
[1641506403931,1.45917236,3426.3,3426.1,2.00479]
[1641506404131,1.45917236,3426.3,3426.1,2.68199]
[1641506404533,0.384472,3426.5,3426.1,2.68199]
[1641506405933,2.00479,3426.8,3426.1,2.68199]
[1641506406535,0.384472,3426.7,3426.1,2.68199]
[1641506407735,0.781654,3426.7,3426.1,2.68199]
[1641506407937,0.781654,3426.7,3426.2,0.13147823]
[1641506408337,0.781654,3426.7,3426.2,1.33064186]
[1641506408737,0.781654,3426.7,3426.3,0.13147823]
[1641506409337,0.384472,3426.7,3426.3,0.13147823]
[1641506410237,0.781654,3426.7,3426.3,0.13147823]
[1641506410839,0.781654,3426.7,3426.2,0.13147823]
[1641506411445,0.781654,3426.7,3426.4,0.13147823]
[1641506411742,0.459982,3426.6,3426.2,0.13147823]
[1641506412140,0.459982,3426.6,3426.1,2.74059362]
[1641506412341,0.459982,3426.6,3426.3,0.13149436]
[1641506412540,0.459982,3426.6,3426.2,0.13149436]
[1641506412942,0.459982,3426.6,3426.4,0.13149436]
[1641506413143,0.459982,3426.6,3426.3,0.13149436]
[1641506413340,0.384472,3426.7,3426.3,0.13149436]
[1641506413541,0.384472,3426.7,3426.1,2.74059362]
[1641506413741,0.384472,3426.7,3426.4,0.13150509]
[1641506413942,0.384472,3426.7,3426.2,0.13150509]
[1641506414342,0.384472,3426.7,3426.1,2.74059362]
[1641506414543,0.384472,3426.7,3426.3,0.13151273]
[1641506414944,0.384472,3426.7,3426.1,2.74059362]
[1641506414945,0.38132814,3426.6,3426.2,0.13151273]
[1641506415144,0.38132814,3426.6,3426.4,0.13151273]
[1641506415344,0.459982,3426.5,3426.4,0.13151273]
[1641506415545,0.459982,3426.5,3426.3,0.13151273]
[1641506415747,0.459982,3426.5,3426.4,0.13151273]
[1641506415944,0.38132814,3426.6,3426.4,0.13151273]
[1641506416148,4.45105666,3426.8,3426.4,0.13151273]
[1641506416346,4.45105666,3426.8,3426.5,0.384472]
[1641506416546,2.99207338,3426.8,3426.5,0.384472]
[1641506416746,2.99207338,3426.8,3426.6,0.13151273]
[1641506416949,0.98728338,3426.8,3426.6,0.13151273]
[1641506417149,0.98728338,3426.8,3426.7,1.00722307]
[1641506417550,0.98728338,3427.0,3426.7,5.88268049]
[1641506417747,0.98728338,3427.0,3426.8,2.00479]
[1641506417947,0.98728338,3427.0,3426.8,2.13630273]
[1641506418147,0.98728338,3427.0,3426.9,0.13151273]
[1641506419048,44.4712,3427.5,3426.9,0.90441273]
[1641506419249,0.98728338,3427.8,3427.1,8.0]
[1641506419449,0.98728338,3427.8,3427.3,4.0]
[1641506419648,0.98728338,3427.8,3427.3,13.19586744]
[1641506419850,0.98728338,3427.8,3427.5,2.00479]
[1641506420452,0.98728338,3427.8,3427.6,1.2408348]
[1641506420653,1.45855471,3427.8,3427.6,1.2408348]
[1641506420855,1.45855471,3427.8,3427.7,0.13151273]
[1641506421053,2.00479,3428.0,3427.7,0.13151273]
[1641506421254,0.459982,3427.9,3427.7,0.13151273]
[1641506421554,2.00479,3428.0,3427.7,0.13151273]
[1641506422855,1.45854665,3427.8,3427.7,0.13151273]
[1641506423255,2.00479,3428.0,3427.7,0.13151273]
[1641506424155,2.00479,3428.0,3427.8,1.19895696]
[1641506424355,2.00479,3428.0,3427.9,0.384472]
[1641506424958,2.464772,3428.0,3427.8,1.19895696]
[1641506425159,2.464772,3428.0,3427.8,0.73580362]
[1641506425757,2.00479,3428.0,3427.8,0.73580362]
[1641506426462,0.38251851,3427.9,3427.5,31.603813]
[1641506426662,0.38251851,3427.9,3427.7,0.384472]
[1641506429165,0.459982,3427.8,3427.7,0.384472]
[1641506429567,0.38251851,3427.9,3427.7,0.384472]
[1641506430472,0.459982,3427.8,3427.7,0.384472]
[1641506430668,0.38251851,3427.9,3427.7,0.384472]
[1641506431467,0.38251851,3427.9,3427.7,8.384472]
[1641506432071,1.84099708,3427.9,3427.7,8.384472]
[1641506432268,0.98728338,3428.0,3427.7,8.384472]
[1641506432469,0.98728338,3428.0,3427.8,1.19895405]
[1641506432670,0.98728338,3428.3,3427.8,1.87485405]
[1641506433070,1.45847857,3427.9,3427.8,1.87485405]
[1641506433471,0.98728338,3428.3,3427.8,1.87485405]
[1641506433676,0.98728338,3428.3,3427.9,1.19895405]
[1641506433876,0.98728338,3428.4,3427.9,1.19895405]
[1641506434073,0.98728338,3428.4,3427.9,5.86633005]
[1641506435574,1.36975925,3428.5,3427.9,5.86633005]
[1641506435774,1.36975925,3428.5,3428.1,2.00479]
[1641506436176,1.36975925,3428.5,3428.2,4.667036]
[1641506437077,0.98728338,3428.5,3428.2,4.667036]
[1641506438276,0.98728338,3428.4,3428.2,4.667036]
[1641506439078,0.98728338,3428.4,3428.0,4.667036]
[1641506439278,0.98728338,3428.4,3428.3,4.667036]
[1641506439478,0.98728338,3428.5,3428.3,4.667036]
[1641506439679,0.98728338,3428.5,3428.0,4.667172]
[1641506439978,0.98728338,3428.5,3428.1,2.00479]
[1641506440377,0.98728338,3428.4,3428.2,4.667036]
[1641506441579,0.38247587,3428.5,3428.2,4.667036]
[1641506442379,0.38247587,3428.5,3428.1,4.666968]
[1641506442579,0.98728338,3428.5,3428.3,4.666968]
[1641506442980,0.98728338,3428.5,3428.1,6.671826]
[1641506443181,0.98728338,3428.5,3428.2,0.384472]
[1641506443581,0.98728338,3428.5,3428.3,4.666968]
[1641506443782,1.44726538,3428.5,3428.3,4.666968]
[1641506443984,0.98728338,3428.5,3428.3,4.666968]
[1641506444482,0.98728338,3428.6,3428.3,4.666968]
[1641506445384,0.98728338,3428.5,3428.3,5.449468]
[1641506446585,1.44726538,3428.5,3428.3,5.449468]
[1641506447082,0.98728338,3428.5,3428.3,5.449468]
[1641506447683,0.397182,3428.6,3428.3,5.449468]
[1641506448684,0.459982,3428.5,3428.3,5.449468]
[1641506448883,0.397182,3428.6,3428.3,5.449468]
[1641506449087,0.397182,3428.6,3428.2,0.384472]
[1641506449485,1.044182,3428.6,3428.2,0.384472]
[1641506456496,1.044182,3428.6,3428.1,2.00479]
[1641506457295,1.5,3428.5,3428.1,2.00479]
[1641506457496,0.397182,3428.4,3428.1,2.00479]
[1641506457696,0.459982,3428.3,3428.1,2.00479]
[1641506458098,0.397182,3428.2,3428.1,2.00479]
[1641506460196,0.384472,3428.7,3428.1,2.00479]
[1641506460396,0.397182,3428.6,3428.1,2.00479]
[1641506464404,0.397182,3428.6,3428.2,4.666968]
[1641506464605,0.397182,3428.6,3428.2,5.350068]
[1641506469312,0.397182,3428.6,3428.2,7.354858]
[1641506471020,0.397182,3428.6,3428.2,5.350068]
[1641506471413,0.397182,3428.6,3428.2,0.6831]
[1641506471613,0.397182,3428.6,3428.2,2.00479]
[1641506475819,0.397182,3428.6,3427.7,1.34694221]
[1641506476018,0.397182,3428.6,3428.3,0.13151332]
[1641506476217,0.397182,3428.6,3427.8,0.13151332]
[1641506476218,0.459982,3428.5,3427.8,0.13151332]
[1641506476418,0.459982,3428.5,3428.4,0.13151332]
[1641506476617,0.857164,3428.5,3428.4,0.13151332]
[1641506476818,0.857164,3428.5,3428.2,2.00479]
[1641506477018,0.857164,3428.5,3428.4,0.13151332]
[1641506477417,0.857164,3428.5,3428.3,0.13151332]
[1641506477618,0.857164,3428.5,3428.2,2.00479]
[1641506477619,0.857164,3428.5,3428.4,0.13151332]
[1641506478018,0.857164,3428.5,3428.3,0.13151332]
[1641506478218,0.459982,3428.4,3428.3,0.13151332]
[1641506479019,1.62004476,3428.4,3428.3,0.86731694]
[1641506479420,2.08002676,3428.4,3428.3,0.86731694]
[1641506480019,2.08002676,3428.4,3428.3,0.59462835]
[1641506482924,1.62004476,3428.4,3428.3,0.59462835]
[1641506483324,2.08002676,3428.4,3428.3,0.59462835]
[1641506483523,1.62004476,3428.4,3428.3,0.59462835]
[1641506483927,1.62004476,3428.4,3428.3,1.33547556]
[1641506484426,2.08002676,3428.4,3428.3,1.33547556]
[1641506485024,2.08002676,3428.4,3428.3,0.59462835]
[1641506485226,0.84590595,3428.4,3428.3,0.59462835]
[1641506486430,2.08002676,3428.4,3428.3,1.33547437]